[Event "Titled Tuesday Blitz May 2 Late 2023"]
[White "Hansen, Eric"]
[Black "Loiacono, Antonio"]
[WhiteFideId "2606771"]
[BlackFideId "895415"]
[WhiteElo "2561"]
[BlackElo "2257"]
[Result "1-0"]
[Round "11"]
[TimeControl "180+2"]
[Date "2023.05.02"]
[WhiteClock "0:01:50"]
[BlackClock "0:01:48"]

1. d4 {[%clk 0:03:00]}  Nf6 {[%clk 0:02:58]} 2. Bg5 {[%clk 0:02:57]}  e6 {[%clk 0:02:50]} 3. Nd2 {[%clk 0:02:56]}  h6 {[%clk 0:02:50]} 4. Bh4 {[%clk 0:02:54]}  d5 {[%clk 0:02:50]} 5. e3 {[%clk 0:02:51]}  Be7 {[%clk 0:02:50]} 6. Bd3 {[%clk 0:02:51]}  b6 {[%clk 0:02:50]} 7. Qe2 {[%clk 0:02:50]}  Bb7 {[%clk 0:02:48]} 8. Ngf3 {[%clk 0:02:48]}  Nbd7 {[%clk 0:02:48]} 9. O-O-O {[%clk 0:02:45]}  c5 {[%clk 0:02:46]} 10. c3 {[%clk 0:02:42]}  c4 {[%clk 0:02:26]} 11. Bc2 {[%clk 0:02:41]}  Ne4 {[%clk 0:02:26]} 12. Bxe7 {[%clk 0:02:39]}  Qxe7 {[%clk 0:02:27]} 13. Nxe4 {[%clk 0:02:36]}  dxe4 {[%clk 0:02:27]} 14. Nd2 {[%clk 0:02:37]}  f5 {[%clk 0:02:22]} 15. Qxc4 {[%clk 0:02:35]}  O-O {[%clk 0:02:19]} 16. f3 {[%clk 0:02:30]}  exf3 {[%clk 0:02:18]} 17. gxf3 {[%clk 0:02:28]}  Rfc8 {[%clk 0:02:17]} 18. Qe2 {[%clk 0:02:28]}  b5 {[%clk 0:02:17]} 19. Kb1 {[%clk 0:02:25]}  a5 {[%clk 0:02:16]} 20. e4 {[%clk 0:02:21]}  fxe4 {[%clk 0:02:16]} 21. Bxe4 {[%clk 0:02:20]}  Bxe4+ {[%clk 0:02:16]} 22. Nxe4 {[%clk 0:02:16]}  b4 {[%clk 0:02:14]} 23. c4 {[%clk 0:02:16]}  Nb6 {[%clk 0:02:06]} 24. c5 {[%clk 0:02:14]}  Nd5 {[%clk 0:02:07]} 25. Rhg1 {[%clk 0:02:14]}  a4 {[%clk 0:02:06]} 26. Nd6 {[%clk 0:02:12]}  Rf8 {[%clk 0:02:02]} 27. Rg4 {[%clk 0:02:04]}  a3 {[%clk 0:02:02]} 28. Rdg1 {[%clk 0:02:04]}  axb2 {[%clk 0:02:01]} 29. Rxg7+ {[%clk 0:02:00]}  Qxg7 {[%clk 0:02:00]} 30. Qxe6+ {[%clk 0:01:55]}  Kh8 {[%clk 0:01:54]} 31. Rxg7 {[%clk 0:01:55]}  Nc3+ {[%clk 0:01:54]} 32. Kxb2 {[%clk 0:01:56]}  Kxg7 {[%clk 0:01:52]} 33. Nf5+ {[%clk 0:01:50]}  Kh8 {[%clk 0:01:48]} 34. Qxh6+ {[%clk 0:01:50]} 1-0


[Site "https://www.chess.com"]

[Event "Titled Tuesday Blitz May 2 Late 2023"]
[White "Antonica, Dragos-Andrei"]
[Black "Samsonkin, Artiom"]
[WhiteFideId "1246372"]
[BlackFideId "13503111"]
[WhiteElo "2285"]
[BlackElo "2524"]
[Result "0-1"]
[Round "11"]
[TimeControl "180+2"]
[Date "2023.05.02"]
[WhiteClock "0:02:00"]
[BlackClock "0:01:39"]

1. e4 {[%clk 0:03:00]}  e6 {[%clk 0:02:53]} 2. d4 {[%clk 0:02:59]}  d5 {[%clk 0:02:54]} 3. Nc3 {[%clk 0:02:59]}  Nf6 {[%clk 0:02:51]} 4. Bg5 {[%clk 0:02:57]}  dxe4 {[%clk 0:02:51]} 5. Nxe4 {[%clk 0:02:55]}  Bd7 {[%clk 0:02:51]} 6. Nxf6+ {[%clk 0:02:51]}  gxf6 {[%clk 0:02:51]} 7. Bh4 {[%clk 0:02:49]}  Bc6 {[%clk 0:02:51]} 8. Nf3 {[%clk 0:02:49]}  Rg8 {[%clk 0:02:50]} 9. Bg3 {[%clk 0:02:48]}  Bd6 {[%clk 0:02:44]} 10. Bd3 {[%clk 0:02:45]}  f5 {[%clk 0:02:44]} 11. Qd2 {[%clk 0:02:45]}  Qf6 {[%clk 0:02:37]} 12. O-O-O {[%clk 0:02:39]}  Bxf3 {[%clk 0:02:34]} 13. Bxd6 {[%clk 0:02:23]}  Bxd1 {[%clk 0:02:23]} 14. Be5 {[%clk 0:02:23]}  Qg5 {[%clk 0:02:19]} 15. Bf4 {[%clk 0:02:24]}  Qxg2 {[%clk 0:02:12]} 16. Rxd1 {[%clk 0:02:24]}  Nc6 {[%clk 0:02:12]} 17. d5 {[%clk 0:02:21]}  Qxd5 {[%clk 0:02:10]} 18. Bxc7 {[%clk 0:02:18]}  Rc8 {[%clk 0:02:00]} 19. Bg3 {[%clk 0:02:16]}  Qa5 {[%clk 0:01:55]} 20. Qe3 {[%clk 0:02:05]}  Qxa2 {[%clk 0:01:43]} 21. Bxf5 {[%clk 0:02:00]}  Qa1+ {[%clk 0:01:39]} 22. Kd2 {[%clk 0:02:00]}  Qa5+ {[%clk 0:01:39]} 0-1


[Site "https://www.chess.com"]

[Event "Titled Tuesday Blitz May 2 Late 2023"]
[White "Nazari, Arad"]
[Black "Ambartsumova, Karina"]
[WhiteFideId "12577324"]
[BlackFideId "4166299"]
[WhiteElo "2242"]
[BlackElo "2240"]
[Result "1-0"]
[Round "11"]
[TimeControl "180+2"]
[Date "2023.05.02"]
[WhiteClock "0:00:12"]
[BlackClock "0:00:02"]

1. e4 {[%clk 0:03:00]}  e5 {[%clk 0:02:59]} 2. f4 {[%clk 0:03:00]}  d5 {[%clk 0:02:57]} 3. exd5 {[%clk 0:03:00]}  e4 {[%clk 0:02:57]} 4. d3 {[%clk 0:02:57]}  Qxd5 {[%clk 0:02:41]} 5. Nc3 {[%clk 0:02:37]}  Bb4 {[%clk 0:02:41]} 6. Bd2 {[%clk 0:02:36]}  Bxc3 {[%clk 0:02:36]} 7. Bxc3 {[%clk 0:02:37]}  Nf6 {[%clk 0:02:36]} 8. dxe4 {[%clk 0:02:19]}  Qxe4+ {[%clk 0:02:31]} 9. Qe2 {[%clk 0:02:19]}  O-O {[%clk 0:02:15]} 10. Bxf6 {[%clk 0:02:17]}  Qxe2+ {[%clk 0:02:15]} 11. Bxe2 {[%clk 0:02:16]}  gxf6 {[%clk 0:02:15]} 12. Kf2 {[%clk 0:02:11]}  Nc6 {[%clk 0:02:14]} 13. c3 {[%clk 0:02:11]}  Be6 {[%clk 0:02:09]} 14. Bf3 {[%clk 0:02:10]}  Rad8 {[%clk 0:02:05]} 15. Bxc6 {[%clk 0:01:57]}  bxc6 {[%clk 0:02:05]} 16. Nf3 {[%clk 0:01:58]}  Rb8 {[%clk 0:01:52]} 17. b3 {[%clk 0:01:53]}  a5 {[%clk 0:01:49]} 18. Nd4 {[%clk 0:01:46]}  Bd5 {[%clk 0:01:45]} 19. c4 {[%clk 0:01:40]}  Be4 {[%clk 0:01:35]} 20. Rhe1 {[%clk 0:01:41]}  f5 {[%clk 0:01:35]} 21. g4 {[%clk 0:01:27]}  Rfd8 {[%clk 0:01:09]} 22. Rad1 {[%clk 0:01:17]}  a4 {[%clk 0:01:03]} 23. gxf5 {[%clk 0:01:12]}  c5 {[%clk 0:00:28]} 24. Nb5 {[%clk 0:01:11]}  Rxd1 {[%clk 0:00:25]} 25. Rxd1 {[%clk 0:01:12]}  axb3 {[%clk 0:00:25]} 26. axb3 {[%clk 0:01:12]}  Bc2 {[%clk 0:00:25]} 27. Rc1 {[%clk 0:01:05]}  Bxb3 {[%clk 0:00:25]} 28. Nxc7 {[%clk 0:00:41]}  Rb4 {[%clk 0:00:26]} 29. Na6 {[%clk 0:00:42]}  Rxc4 {[%clk 0:00:26]} 30. Rxc4 {[%clk 0:00:42]}  Bxc4 {[%clk 0:00:27]} 31. Nxc5 {[%clk 0:00:43]}  Kg7 {[%clk 0:00:27]} 32. Ke3 {[%clk 0:00:42]}  Ba2 {[%clk 0:00:25]} 33. Nd7 {[%clk 0:00:33]}  f6 {[%clk 0:00:22]} 34. Nc5 {[%clk 0:00:28]}  Bb1 {[%clk 0:00:22]} 35. Ne6+ {[%clk 0:00:22]}  Kf7 {[%clk 0:00:20]} 36. Nd4 {[%clk 0:00:23]}  Kg7 {[%clk 0:00:19]} 37. Kf3 {[%clk 0:00:23]}  Bd3 {[%clk 0:00:10]} 38. Kg4 {[%clk 0:00:17]}  Bb1 {[%clk 0:00:10]} 39. Ne6+ {[%clk 0:00:13]}  Kf7 {[%clk 0:00:10]} 40. Nd8+ {[%clk 0:00:12]}  Kg7 {[%clk 0:00:10]} 41. Nb7 {[%clk 0:00:11]}  Bc2 {[%clk 0:00:10]} 42. Nd6 {[%clk 0:00:11]}  Bb1 {[%clk 0:00:10]} 43. Kf3 {[%clk 0:00:11]}  Bc2 {[%clk 0:00:10]} 44. Ke3 {[%clk 0:00:12]}  Bb1 {[%clk 0:00:10]} 45. Kd4 {[%clk 0:00:13]}  Bc2 {[%clk 0:00:09]} 46. Kd5 {[%clk 0:00:12]}  Bb3+ {[%clk 0:00:10]} 47. Kc6 {[%clk 0:00:12]}  Ba2 {[%clk 0:00:10]} 48. Kd7 {[%clk 0:00:12]}  Bb1 {[%clk 0:00:09]} 49. Ke7 {[%clk 0:00:12]}  Bc2 {[%clk 0:00:07]} 50. Ne8+ {[%clk 0:00:13]}  Kg8 {[%clk 0:00:04]} 51. Kxf6 {[%clk 0:00:12]}  Kf8 {[%clk 0:00:05]} 52. Nd6 {[%clk 0:00:12]}  Bb3 {[%clk 0:00:05]} 53. h4 {[%clk 0:00:12]}  Ba2 {[%clk 0:00:05]} 54. h5 {[%clk 0:00:12]}  Bb1 {[%clk 0:00:04]} 55. h6 {[%clk 0:00:12]}  Ba2 {[%clk 0:00:04]} 56. Ne4 {[%clk 0:00:12]}  Bb1 {[%clk 0:00:04]} 57. Ng5 {[%clk 0:00:12]}  Kg8 {[%clk 0:00:04]} 58. Ke6 {[%clk 0:00:12]}  Kh8 {[%clk 0:00:04]} 59. f6 {[%clk 0:00:12]}  Ba2+ {[%clk 0:00:03]} 60. Ke7 {[%clk 0:00:12]}  Kg8 {[%clk 0:00:01]} 61. f5 {[%clk 0:00:12]}  Bb3 {[%clk 0:00:02]} 62. Ne6 {[%clk 0:00:12]} 1-0


[Site "https://www.chess.com"]

[Event "Titled Tuesday Blitz May 2 Late 2023"]
[White "Hajiyev, Kanan"]
[Black "Gritsenko, Nikolai"]
[WhiteFideId "13404148"]
[BlackFideId "14112493"]
[WhiteElo "2103"]
[BlackElo "2389"]
[Result "1-0"]
[Round "11"]
[TimeControl "180+2"]
[Date "2023.05.02"]
[WhiteClock "0:00:33"]
[BlackClock "0:00:33"]

1. d4 {[%clk 0:02:58]}  g6 {[%clk 0:02:58]} 2. Nf3 {[%clk 0:02:58]}  Bg7 {[%clk 0:02:59]} 3. g3 {[%clk 0:02:59]}  c5 {[%clk 0:02:58]} 4. Bg2 {[%clk 0:02:58]}  cxd4 {[%clk 0:02:58]} 5. Nxd4 {[%clk 0:02:59]}  Nc6 {[%clk 0:02:58]} 6. Nxc6 {[%clk 0:02:54]}  bxc6 {[%clk 0:02:58]} 7. O-O {[%clk 0:02:54]}  Rb8 {[%clk 0:02:52]} 8. c4 {[%clk 0:02:53]}  Qc7 {[%clk 0:02:47]} 9. Nc3 {[%clk 0:02:51]}  d6 {[%clk 0:02:42]} 10. Qc2 {[%clk 0:02:46]}  Nf6 {[%clk 0:02:41]} 11. b3 {[%clk 0:02:46]}  Bf5 {[%clk 0:02:34]} 12. Qd2 {[%clk 0:01:59]}  h5 {[%clk 0:02:29]} 13. Bb2 {[%clk 0:01:47]}  h4 {[%clk 0:02:27]} 14. e4 {[%clk 0:01:46]}  Be6 {[%clk 0:02:17]} 15. Rfe1 {[%clk 0:01:29]}  Kf8 {[%clk 0:02:04]} 16. Rad1 {[%clk 0:01:27]}  Qa5 {[%clk 0:01:47]} 17. Na4 {[%clk 0:01:19]}  Qh5 {[%clk 0:01:43]} 18. e5 {[%clk 0:01:13]}  dxe5 {[%clk 0:00:45]} 19. Rxe5 {[%clk 0:00:51]}  Qh7 {[%clk 0:00:40]} 20. g4 {[%clk 0:00:34]}  Nxg4 {[%clk 0:00:33]} 21. Qd8+ {[%clk 0:00:33]} 1-0


[Site "https://www.chess.com"]

[Event "Titled Tuesday Blitz May 2 Late 2023"]
[White "Petrovic, Aleksa"]
[Black "Sai Krishna G V"]
[WhiteFideId "967629"]
[BlackFideId "5028280"]
[WhiteElo "2309"]
[BlackElo "2359"]
[Result "1/2-1/2"]
[Round "11"]
[TimeControl "180+2"]
[Date "2023.05.02"]
[WhiteClock "0:01:51"]
[BlackClock "0:02:44"]

1. d4 {[%clk 0:02:59]}  Nf6 {[%clk 0:02:59]} 2. c4 {[%clk 0:02:50]}  g6 {[%clk 0:03:00]} 3. Nc3 {[%clk 0:02:50]}  Bg7 {[%clk 0:03:00]} 4. e4 {[%clk 0:02:48]}  d6 {[%clk 0:03:01]} 5. Be2 {[%clk 0:02:48]}  O-O {[%clk 0:03:02]} 6. Nf3 {[%clk 0:02:48]}  e5 {[%clk 0:03:01]} 7. O-O {[%clk 0:02:47]}  Nc6 {[%clk 0:03:01]} 8. d5 {[%clk 0:02:46]}  Ne7 {[%clk 0:03:02]} 9. b4 {[%clk 0:02:46]}  Nh5 {[%clk 0:03:01]} 10. Re1 {[%clk 0:02:46]}  f5 {[%clk 0:03:01]} 11. Ng5 {[%clk 0:02:45]}  Nf6 {[%clk 0:03:02]} 12. Bf3 {[%clk 0:02:40]}  c6 {[%clk 0:03:02]} 13. Ne6 {[%clk 0:02:31]}  Bxe6 {[%clk 0:03:02]} 14. dxe6 {[%clk 0:02:32]}  fxe4 {[%clk 0:03:02]} 15. Nxe4 {[%clk 0:02:29]}  Nxe4 {[%clk 0:03:02]} 16. Bxe4 {[%clk 0:02:28]}  d5 {[%clk 0:03:03]} 17. cxd5 {[%clk 0:02:28]}  cxd5 {[%clk 0:03:04]} 18. Bg5 {[%clk 0:02:23]}  dxe4 {[%clk 0:03:00]} 19. Qxd8 {[%clk 0:02:22]}  Rfxd8 {[%clk 0:03:01]} 20. Bxe7 {[%clk 0:02:22]}  Re8 {[%clk 0:03:01]} 21. Bc5 {[%clk 0:02:17]}  b6 {[%clk 0:03:01]} 22. Be3 {[%clk 0:02:13]}  Rxe6 {[%clk 0:03:00]} 23. Rac1 {[%clk 0:02:12]}  Bf8 {[%clk 0:02:58]} 24. Rc4 {[%clk 0:02:11]}  b5 {[%clk 0:02:52]} 25. Rxe4 {[%clk 0:02:11]}  a5 {[%clk 0:02:52]} 26. Bc5 {[%clk 0:01:59]}  axb4 {[%clk 0:02:49]} 27. Bxf8 {[%clk 0:01:53]}  Kxf8 {[%clk 0:02:50]} 28. Rxb4 {[%clk 0:01:53]}  Rxa2 {[%clk 0:02:50]} 29. Rxb5 {[%clk 0:01:52]}  Rf6 {[%clk 0:02:46]} 30. Rbxe5 {[%clk 0:01:51]}  Rfxf2 {[%clk 0:02:46]} 31. Rf1 {[%clk 0:01:50]}  Rxf1+ {[%clk 0:02:43]} 32. Kxf1 {[%clk 0:01:51]}  Kg7 {[%clk 0:02:44]} 1/2-1/2


[Site "https://www.chess.com"]

[Event "Titled Tuesday Blitz May 2 Late 2023"]
[White "Makridis, Dimitrios"]
[Black "Haszon, David"]
[WhiteFideId "25864475"]
[BlackFideId "733610"]
[WhiteElo "2277"]
[BlackElo "2210"]
[Result "1-0"]
[Round "11"]
[TimeControl "180+2"]
[Date "2023.05.02"]
[WhiteClock "0:01:44"]
[BlackClock "0:01:47"]

1. e4 {[%clk 0:02:53]}  c5 {[%clk 0:02:59]} 2. b4 {[%clk 0:02:42]}  cxb4 {[%clk 0:02:58]} 3. a3 {[%clk 0:02:37]}  d5 {[%clk 0:02:59]} 4. exd5 {[%clk 0:02:32]}  Qxd5 {[%clk 0:03:00]} 5. Nf3 {[%clk 0:02:33]}  e5 {[%clk 0:02:50]} 6. axb4 {[%clk 0:02:16]}  Bxb4 {[%clk 0:02:50]} 7. Ba3 {[%clk 0:02:15]}  Bxa3 {[%clk 0:02:30]} 8. Nxa3 {[%clk 0:02:16]}  Nf6 {[%clk 0:02:29]} 9. Nb5 {[%clk 0:02:14]}  Qc5 {[%clk 0:02:14]} 10. d4 {[%clk 0:02:03]}  exd4 {[%clk 0:02:12]} 11. Qxd4 {[%clk 0:02:04]}  Qe7+ {[%clk 0:02:08]} 12. Qe5 {[%clk 0:01:48]}  Nc6 {[%clk 0:02:01]} 13. Nc7+ {[%clk 0:01:46]}  Kd7 {[%clk 0:02:00]} 14. Qxe7+ {[%clk 0:01:44]}  Nxe7 {[%clk 0:02:00]} 15. Nxa8 {[%clk 0:01:45]}  Kc6 {[%clk 0:01:50]} 16. Rxa7 {[%clk 0:01:44]}  Bf5 {[%clk 0:01:47]} 17. Ne5+ {[%clk 0:01:44]} 1-0


[Site "https://www.chess.com"]

[Event "Titled Tuesday Blitz May 2 Late 2023"]
[White "Vovk, Orest"]
[Black "Bryant, John Daniel"]
[WhiteFideId "14113490"]
[BlackFideId "2031280"]
[WhiteElo "2215"]
[BlackElo "2455"]
[Result "1/2-1/2"]
[Round "11"]
[TimeControl "180+2"]
[Date "2023.05.02"]
[WhiteClock "0:00:09"]
[BlackClock "0:00:05"]

1. c4 {[%clk 0:03:00]}  b6 {[%clk 0:02:54]} 2. Nc3 {[%clk 0:02:58]}  Bb7 {[%clk 0:02:54]} 3. Nf3 {[%clk 0:02:58]}  e6 {[%clk 0:02:54]} 4. d3 {[%clk 0:02:51]}  Nf6 {[%clk 0:02:51]} 5. e4 {[%clk 0:02:48]}  c5 {[%clk 0:01:52]} 6. e5 {[%clk 0:02:37]}  Ng4 {[%clk 0:01:47]} 7. h3 {[%clk 0:02:33]}  Nh6 {[%clk 0:01:47]} 8. g4 {[%clk 0:02:29]}  f6 {[%clk 0:01:22]} 9. Bxh6 {[%clk 0:02:23]}  gxh6 {[%clk 0:01:21]} 10. Ne4 {[%clk 0:02:22]}  Bxe4 {[%clk 0:01:18]} 11. dxe4 {[%clk 0:02:21]}  fxe5 {[%clk 0:00:33]} 12. Nxe5 {[%clk 0:02:15]}  Bg7 {[%clk 0:00:28]} 13. Nd3 {[%clk 0:02:12]}  Nc6 {[%clk 0:00:22]} 14. Bg2 {[%clk 0:02:12]}  O-O {[%clk 0:00:20]} 15. O-O {[%clk 0:02:11]}  Ne5 {[%clk 0:00:13]} 16. Nxe5 {[%clk 0:01:36]}  Bxe5 {[%clk 0:00:14]} 17. Qe2 {[%clk 0:01:36]}  Qg5 {[%clk 0:00:11]} 18. f4 {[%clk 0:01:28]}  Rxf4 {[%clk 0:00:10]} 19. Rf3 {[%clk 0:01:14]}  Rxf3 {[%clk 0:00:08]} 20. Bxf3 {[%clk 0:01:07]}  Qf4 {[%clk 0:00:06]} 21. Rf1 {[%clk 0:01:01]}  Qg3+ {[%clk 0:00:06]} 22. Qg2 {[%clk 0:01:00]}  Bd4+ {[%clk 0:00:03]} 23. Kh1 {[%clk 0:01:00]}  Qxg2+ {[%clk 0:00:04]} 24. Kxg2 {[%clk 0:00:58]}  Bxb2 {[%clk 0:00:03]} 25. h4 {[%clk 0:00:47]}  Bd4 {[%clk 0:00:02]} 26. g5 {[%clk 0:00:46]}  hxg5 {[%clk 0:00:03]} 27. hxg5 {[%clk 0:00:46]}  Kg7 {[%clk 0:00:04]} 28. Bh5 {[%clk 0:00:46]}  Rf8 {[%clk 0:00:04]} 29. Rxf8 {[%clk 0:00:43]}  Kxf8 {[%clk 0:00:05]} 30. Kf3 {[%clk 0:00:35]}  Be5 {[%clk 0:00:05]} 31. a4 {[%clk 0:00:33]}  Ke7 {[%clk 0:00:05]} 32. Kg4 {[%clk 0:00:30]}  Bb2 {[%clk 0:00:04]} 33. Kf3 {[%clk 0:00:27]}  Bc1 {[%clk 0:00:04]} 34. g6 {[%clk 0:00:27]}  hxg6 {[%clk 0:00:04]} 35. Bxg6 {[%clk 0:00:27]}  Kf6 {[%clk 0:00:04]} 36. Be8 {[%clk 0:00:26]}  d6 {[%clk 0:00:04]} 37. Ke2 {[%clk 0:00:26]}  Ke5 {[%clk 0:00:04]} 38. Kd3 {[%clk 0:00:26]}  d5 {[%clk 0:00:03]} 39. exd5 {[%clk 0:00:25]}  exd5 {[%clk 0:00:04]} 40. cxd5 {[%clk 0:00:19]}  Kxd5 {[%clk 0:00:04]} 41. Bf7+ {[%clk 0:00:19]}  Kd6 {[%clk 0:00:05]} 42. Kc4 {[%clk 0:00:19]}  a6 {[%clk 0:00:03]} 43. Bh5 {[%clk 0:00:16]}  Bd2 {[%clk 0:00:03]} 44. Bf3 {[%clk 0:00:16]}  Kc7 {[%clk 0:00:03]} 45. Bg2 {[%clk 0:00:16]}  Ba5 {[%clk 0:00:03]} 46. Bf3 {[%clk 0:00:16]}  Kb8 {[%clk 0:00:03]} 47. Bg2 {[%clk 0:00:16]}  Ka7 {[%clk 0:00:04]} 48. Bf3 {[%clk 0:00:16]}  Be1 {[%clk 0:00:04]} 49. Bg2 {[%clk 0:00:15]}  Bf2 {[%clk 0:00:05]} 50. Bf3 {[%clk 0:00:15]}  Bd4 {[%clk 0:00:05]} 51. Bg2 {[%clk 0:00:15]}  b5+ {[%clk 0:00:05]} 52. axb5 {[%clk 0:00:15]}  a5 {[%clk 0:00:06]} 53. Bf1 {[%clk 0:00:13]}  a4 {[%clk 0:00:05]} 54. Bd3 {[%clk 0:00:10]}  Kb6 {[%clk 0:00:05]} 55. Bc2 {[%clk 0:00:10]}  a3 {[%clk 0:00:05]} 56. Kb3 {[%clk 0:00:10]}  Bb2 {[%clk 0:00:05]} 57. Bd3 {[%clk 0:00:10]}  Ka5 {[%clk 0:00:05]} 58. Bc4 {[%clk 0:00:10]}  Bc1 {[%clk 0:00:06]} 59. Bf7 {[%clk 0:00:09]}  Kxb5 {[%clk 0:00:06]} 60. Bc4+ {[%clk 0:00:08]}  Ka5 {[%clk 0:00:06]} 61. Bf7 {[%clk 0:00:08]}  Kb6 {[%clk 0:00:06]} 62. Bc4 {[%clk 0:00:07]}  Kc6 {[%clk 0:00:06]} 63. Bg8 {[%clk 0:00:06]}  Bb2 {[%clk 0:00:06]} 64. Kc2 {[%clk 0:00:06]}  Kb5 {[%clk 0:00:06]} 65. Ba2 {[%clk 0:00:06]}  c4 {[%clk 0:00:06]} 66. Bb1 {[%clk 0:00:06]}  Kb4 {[%clk 0:00:05]} 67. Ba2 {[%clk 0:00:06]}  c3 {[%clk 0:00:04]} 68. Bb1 {[%clk 0:00:07]}  Kc5 {[%clk 0:00:04]} 69. Ba2 {[%clk 0:00:07]}  Kd4 {[%clk 0:00:04]} 70. Bb1 {[%clk 0:00:07]}  Ke3 {[%clk 0:00:05]} 71. Ba2 {[%clk 0:00:08]}  Ke2 {[%clk 0:00:04]} 72. Bb1 {[%clk 0:00:08]}  Kf2 {[%clk 0:00:05]} 73. Ba2 {[%clk 0:00:09]}  Ke3 {[%clk 0:00:05]} 74. Bb1 {[%clk 0:00:09]}  Kd4 {[%clk 0:00:05]} 75. Ba2 {[%clk 0:00:10]}  Kc5 {[%clk 0:00:05]} 76. Bb1 {[%clk 0:00:10]}  Kb4 {[%clk 0:00:04]} 77. Ba2 {[%clk 0:00:11]}  Ba1 {[%clk 0:00:05]} 78. Bb1 {[%clk 0:00:11]}  a2 {[%clk 0:00:04]} 79. Bxa2 {[%clk 0:00:11]}  Ka3 {[%clk 0:00:05]} 80. Bf7 {[%clk 0:00:11]}  Bb2 {[%clk 0:00:05]} 81. Bg6 {[%clk 0:00:09]} 1/2-1/2


[Site "https://www.chess.com"]

[Event "Titled Tuesday Blitz May 2 Late 2023"]
[White "Nazaretyan, Tigran"]
[Black "Martins, Bruno Andre Leite"]
[WhiteFideId "24162345"]
[BlackFideId "1942255"]
[WhiteElo "2111"]
[BlackElo "2240"]
[Result "0-1"]
[Round "11"]
[TimeControl "180+2"]
[Date "2023.05.02"]
[WhiteClock "0:00:19"]
[BlackClock "0:01:05"]

1. d4 {[%clk 0:03:00]}  Nf6 {[%clk 0:02:59]} 2. c4 {[%clk 0:02:59]}  e6 {[%clk 0:02:59]} 3. Nf3 {[%clk 0:02:59]}  d5 {[%clk 0:02:59]} 4. Nc3 {[%clk 0:02:59]}  Be7 {[%clk 0:02:58]} 5. Bf4 {[%clk 0:02:58]}  O-O {[%clk 0:02:57]} 6. e3 {[%clk 0:02:58]}  b6 {[%clk 0:02:27]} 7. Bd3 {[%clk 0:02:56]}  Bb7 {[%clk 0:02:23]} 8. O-O {[%clk 0:02:55]}  c5 {[%clk 0:02:20]} 9. dxc5 {[%clk 0:02:55]}  bxc5 {[%clk 0:02:15]} 10. Qe2 {[%clk 0:02:54]}  Nc6 {[%clk 0:02:07]} 11. Rfd1 {[%clk 0:02:31]}  d4 {[%clk 0:02:04]} 12. exd4 {[%clk 0:02:23]}  cxd4 {[%clk 0:02:05]} 13. Ne4 {[%clk 0:02:23]}  Nh5 {[%clk 0:02:02]} 14. Bd2 {[%clk 0:02:12]}  Qc7 {[%clk 0:02:01]} 15. g3 {[%clk 0:02:02]}  f5 {[%clk 0:01:55]} 16. Neg5 {[%clk 0:01:59]}  Bxg5 {[%clk 0:01:56]} 17. Nxg5 {[%clk 0:01:59]}  Ne5 {[%clk 0:01:53]} 18. Qxh5 {[%clk 0:01:45]}  h6 {[%clk 0:01:53]} 19. Nxe6 {[%clk 0:01:42]}  Qc6 {[%clk 0:01:45]} 20. f3 {[%clk 0:01:22]}  Nxf3+ {[%clk 0:01:37]} 21. Kf2 {[%clk 0:01:20]}  Ne5 {[%clk 0:01:34]} 22. Bf1 {[%clk 0:00:58]}  Ng4+ {[%clk 0:01:24]} 23. Ke1 {[%clk 0:00:30]}  Qxe6+ {[%clk 0:01:20]} 24. Be2 {[%clk 0:00:30]}  Rae8 {[%clk 0:01:18]} 25. Be3 {[%clk 0:00:24]}  Qxe3 {[%clk 0:01:11]} 26. Qxg4 {[%clk 0:00:23]}  Bf3 {[%clk 0:01:07]} 27. Qxf3 {[%clk 0:00:19]}  Qxf3 {[%clk 0:01:07]} 28. Rd2 {[%clk 0:00:20]}  d3 {[%clk 0:01:06]} 29. Kd1 {[%clk 0:00:19]}  Rxe2 {[%clk 0:01:05]} 0-1


[Site "https://www.chess.com"]

[Event "Titled Tuesday Blitz May 2 Late 2023"]
[White "Erzhanov, Arman"]
[Black "Lee, Linden"]
[WhiteFideId "4138821"]
[BlackFideId "30941830"]
[WhiteElo "2138"]
[BlackElo "1985"]
[Result "1-0"]
[Round "11"]
[TimeControl "180+2"]
[Date "2023.05.02"]
[WhiteClock "0:00:20"]
[BlackClock "0:00:08"]

1. e4 {[%clk 0:02:56]}  c6 {[%clk 0:03:00]} 2. d4 {[%clk 0:02:55]}  d5 {[%clk 0:03:00]} 3. exd5 {[%clk 0:02:56]}  cxd5 {[%clk 0:03:01]} 4. c4 {[%clk 0:02:57]}  e6 {[%clk 0:03:01]} 5. Nc3 {[%clk 0:02:53]}  Nf6 {[%clk 0:03:01]} 6. c5 {[%clk 0:02:50]}  Be7 {[%clk 0:02:57]} 7. Nf3 {[%clk 0:02:50]}  O-O {[%clk 0:02:57]} 8. Bf4 {[%clk 0:02:42]}  b6 {[%clk 0:02:56]} 9. b4 {[%clk 0:02:39]}  Ne4 {[%clk 0:02:49]} 10. Qc2 {[%clk 0:02:34]}  Nc6 {[%clk 0:02:36]} 11. a3 {[%clk 0:02:31]}  Bf6 {[%clk 0:02:26]} 12. Nxe4 {[%clk 0:02:26]}  dxe4 {[%clk 0:02:25]} 13. Qxe4 {[%clk 0:02:27]}  Nxd4 {[%clk 0:02:25]} 14. O-O-O {[%clk 0:02:20]}  bxc5 {[%clk 0:02:16]} 15. Nxd4 {[%clk 0:02:09]}  Bxd4 {[%clk 0:01:48]} 16. Qxa8 {[%clk 0:02:01]}  Qf6 {[%clk 0:01:46]} 17. Qe4 {[%clk 0:01:59]}  Bb2+ {[%clk 0:01:41]} 18. Kb1 {[%clk 0:01:59]}  e5 {[%clk 0:01:04]} 19. Bd3 {[%clk 0:01:55]}  g6 {[%clk 0:01:02]} 20. Bc1 {[%clk 0:01:51]}  Bf5 {[%clk 0:00:57]} 21. Qd5 {[%clk 0:01:43]}  Bd4 {[%clk 0:00:49]} 22. Be3 {[%clk 0:01:33]}  Rd8 {[%clk 0:00:46]} 23. Qc4 {[%clk 0:01:31]}  Be6 {[%clk 0:00:45]} 24. Qc2 {[%clk 0:01:28]}  cxb4 {[%clk 0:00:34]} 25. axb4 {[%clk 0:01:25]}  Rb8 {[%clk 0:00:27]} 26. Bxd4 {[%clk 0:01:23]}  exd4 {[%clk 0:00:26]} 27. b5 {[%clk 0:01:22]}  a6 {[%clk 0:00:24]} 28. Rhe1 {[%clk 0:01:17]}  axb5 {[%clk 0:00:24]} 29. Kb2 {[%clk 0:00:59]}  Qe7 {[%clk 0:00:23]} 30. Qd2 {[%clk 0:00:51]}  b4 {[%clk 0:00:18]} 31. Bc4 {[%clk 0:00:46]}  Qa7 {[%clk 0:00:12]} 32. Ra1 {[%clk 0:00:45]}  Qc5 {[%clk 0:00:09]} 33. Bxe6 {[%clk 0:00:41]}  fxe6 {[%clk 0:00:09]} 34. Qc2 {[%clk 0:00:39]}  Qd5 {[%clk 0:00:07]} 35. Qb3 {[%clk 0:00:38]}  Qxg2 {[%clk 0:00:05]} 36. Qxe6+ {[%clk 0:00:39]}  Kg7 {[%clk 0:00:05]} 37. Ra7+ {[%clk 0:00:38]}  Kh6 {[%clk 0:00:05]} 38. Qe2 {[%clk 0:00:25]}  Rf8 {[%clk 0:00:02]} 39. Qd2+ {[%clk 0:00:24]}  g5 {[%clk 0:00:02]} 40. Re6+ {[%clk 0:00:23]}  Kh5 {[%clk 0:00:03]} 41. Rxh7+ {[%clk 0:00:23]}  Kg4 {[%clk 0:00:03]} 42. h3+ {[%clk 0:00:22]}  Kf5 {[%clk 0:00:02]} 43. Re2 {[%clk 0:00:18]}  Qf3 {[%clk 0:00:02]} 44. Rhe7 {[%clk 0:00:16]}  Kg6 {[%clk 0:00:01]} 45. R2e6+ {[%clk 0:00:15]}  Rf6 {[%clk 0:00:01]} 46. Rxf6+ {[%clk 0:00:15]}  Qxf6 {[%clk 0:00:01]} 47. Rd7 {[%clk 0:00:14]}  d3+ {[%clk 0:00:02]} 48. Kb1 {[%clk 0:00:14]}  Qe6 {[%clk 0:00:01]} 49. Qxd3+ {[%clk 0:00:14]}  Kh5 {[%clk 0:00:02]} 50. Rh7+ {[%clk 0:00:14]}  Qh6 {[%clk 0:00:01]} 51. Qf3+ {[%clk 0:00:14]}  Kg6 {[%clk 0:00:02]} 52. Rxh6+ {[%clk 0:00:14]}  Kxh6 {[%clk 0:00:02]} 53. Qg4 {[%clk 0:00:14]}  b3 {[%clk 0:00:02]} 54. f4 {[%clk 0:00:15]}  gxf4 {[%clk 0:00:02]} 55. Qxf4+ {[%clk 0:00:16]}  Kh5 {[%clk 0:00:03]} 56. Kb2 {[%clk 0:00:16]}  Kg6 {[%clk 0:00:03]} 57. Kxb3 {[%clk 0:00:17]}  Kh5 {[%clk 0:00:03]} 58. Kc3 {[%clk 0:00:18]}  Kg6 {[%clk 0:00:04]} 59. Kd3 {[%clk 0:00:18]}  Kh5 {[%clk 0:00:05]} 60. Ke3 {[%clk 0:00:19]}  Kg6 {[%clk 0:00:06]} 61. Kf3 {[%clk 0:00:20]}  Kh5 {[%clk 0:00:06]} 62. Kg3 {[%clk 0:00:21]}  Kg6 {[%clk 0:00:07]} 63. h4 {[%clk 0:00:21]}  Kh5 {[%clk 0:00:08]} 64. Qg5# {[%clk 0:00:20]} 1-0


[Site "https://www.chess.com"]